fUST/lending_fUST_20260516
["ID","MTS","AMOUNT","RATE_DAILY","PERIOD"]
[422352048,1778863843000,-2026.0,0.00011232,2]
[422352046,1778863843000,-500.0,0.00011232,2]
[422352044,1778863843000,-1791.44,0.00011232,2]
[422352061,1778863843000,-897.07,0.00011232,2]
[422352063,1778863843000,-500.0,0.00011232,2]
[422352059,1778863843000,-4099.69,0.00011232,2]
[422352058,1778863843000,-507.51,0.00011232,2]
[422352054,1778863843000,-9569.51,0.00011232,2]
[422352069,1778863843000,-500.0,0.00011232,2]
[422352052,1778863843000,-1121.96,0.00011232,2]
[422352056,1778863843000,-500.0,0.00011232,2]
[422352012,1778863843000,-7690.37,0.00011232,2]
[422352031,1778863843000,-500.0,0.00011232,2]
[422352014,1778863843000,-500.0,0.00011232,2]
[422351945,1778863843000,-711.9,0.00011232,2]
[422351997,1778863843000,-2481.92,0.00011232,2]
[422351940,1778863843000,-500.0,0.00011232,2]
[422351942,1778863843000,-1773.23,0.00011232,2]
[422351943,1778863843000,-500.0,0.00011232,2]
[422351949,1778863843000,-500.0,0.00011232,2]
[422351947,1778863843000,-928.17,0.00011232,2]
[422351951,1778863843000,-3398.85,0.00011232,2]
[422351933,1778863843000,-762.33,0.00011232,2]
[422351931,1778863843000,-804.15,0.00011232,2]
[422351935,1778863843000,-9498.13,0.00011232,2]
[422351929,1778863843000,-2324.68,0.00011232,2]
[422351937,1778863843000,-500.0,0.00011232,2]
[422351953,1778863843000,-561.21,0.00011232,2]
[422351955,1778863843000,-588.06,0.00011232,2]
[422351958,1778863843000,-937.08,0.00011232,2]
[422351957,1778863843000,-3065.75,0.00011232,2]
[422351964,1778863843000,-2895.66,0.00011232,2]
[422351967,1778863843000,-500.0,0.00011232,2]
[422351961,1778863843000,-3580.33,0.00011232,2]
[422351974,1778863843000,-247.49731312,0.00011232,2]
[422351970,1778863843000,-500.0,0.00011232,2]
[422351977,1778863843000,-2521.44,0.00011232,2]
[422351986,1778863843000,-2729.04,0.00011232,2]
[422351981,1778863843000,-9311.83,0.00011232,2]
[422351984,1778863843000,-1574.98,0.00011232,2]
[422351989,1778863843000,-7013.42,0.00011232,2]
[422351991,1778863843000,-506.43,0.00011232,2]
[422352006,1778863843000,-500.0,0.00011232,2]
[422352008,1778863843000,-651.23,0.00011232,2]
[422351994,1778863843000,-6487.77,0.00011232,2]
[422352000,1778863843000,-2924.66,0.00011232,2]
[422352065,1778863843000,-2493.99,0.00011232,2]
[422352174,1778863843000,-500.0,0.00011506,2]
[422352071,1778863843000,-779.34,0.00011232,2]
[422352133,1778863843000,-152.0,0.00011506,7]
[422352142,1778863843000,-500.0,0.00011506,2]
[422352139,1778863843000,-720.55,0.00011506,2]
[422352146,1778863843000,-500.0,0.00011506,2]
[422352144,1778863843000,-500.0,0.00011506,2]
[422352148,1778863843000,-500.0,0.00011506,2]
[422352159,1778863843000,-500.0,0.00011506,2]
[422352165,1778863843000,-500.0,0.00011506,2]
[422352163,1778863843000,-1374.55,0.00011506,2]
[422352161,1778863843000,-564.0,0.00011506,2]
[422352152,1778863843000,-688.82,0.00011506,2]
[422352150,1778863843000,-1523.86,0.00011506,2]
[422352157,1778863843000,-500.0,0.00011506,2]
[422352155,1778863843000,-855.3,0.00011506,2]
[422352153,1778863843000,-500.0,0.00011506,2]
[422352172,1778863843000,-500.0,0.00011506,2]
[422352168,1778863843000,-356.3312102,0.00011506,2]
[422352167,1778863843000,-500.0,0.00011506,2]
[422352170,1778863843000,-500.0,0.00011506,2]
[422352176,1778863843000,-806.6,0.00011506,2]
[422352182,1778863843000,-1509.13,0.00011506,2]
[422352180,1778863843000,-500.0,0.00011506,2]
[422352178,1778863843000,-500.0,0.00011506,2]
[422352183,1778863843000,-500.0,0.00011506,2]
[422352193,1778863843000,-500.0,0.00011506,2]
[422352189,1778863843000,-500.0,0.00011506,2]
[422352187,1778863843000,-1499.43,0.00011506,2]
[422352067,1778863843000,-3958.28,0.00011232,2]
[422352185,1778863843000,-500.0,0.00011506,2]
[422352131,1778863843000,-500.0,0.00011506,2]
[422352129,1778863843000,-2627.9075,0.00011506,2]
[422352191,1778863843000,-500.0,0.00011506,2]
[422352135,1778863843000,-500.0,0.00011506,2]
[422352140,1778863843000,-500.0,0.00011506,2]
[422352084,1778863843000,-500.0,0.00011232,2]
[422352078,1778863843000,-3011.93,0.00011232,2]
[422352073,1778863843000,-500.0,0.00011232,2]
[422352077,1778863843000,-1244.28,0.00011232,2]
[422352092,1778863843000,-3040.33,0.00011233,2]
[422352080,1778863843000,-6290.54,0.00011232,2]
[422352082,1778863843000,-1305.79,0.00011232,2]
[422352086,1778863843000,-3212.3,0.00011232,2]
[422352088,1778863843000,-175.9278,0.00011232,2]
[422352094,1778863843000,-3000.0,0.0001124,30]
[422352100,1778863843000,-3000.0,0.0001126,30]
[422352096,1778863843000,-152.0,0.0001124,30]
[422352098,1778863843000,-3000.0,0.0001125,30]
[422352101,1778863843000,-3000.0,0.0001127,30]
[422352075,1778863843000,-500.0,0.00011232,2]
[422352105,1778863843000,-5054.567054,0.0001129,30]
[422352103,1778863843000,-3000.0,0.0001128,30]
[422352126,1778863843000,-1414.98114082,0.000115,2]
[422352128,1778863843000,-2141.6815,0.00011506,2]
[422352124,1778863843000,-7208.88931684,0.000115,2]
[422352122,1778863843000,-380269.05779838,0.000115,7]
[422352120,1778863843000,-557.5788265,0.00011498,2]
[422352137,1778863843000,-500.0,0.00011506,2]
[422352113,1778863843000,-1645.26836357,0.00011308,2]
[422352111,1778863843000,-221.8,0.000113,2]
[422352107,1778863843000,-7208.88931684,0.000113,2]
[422352116,1778863843000,-7208.88931684,0.000114,2]
[422352109,1778863843000,-1414.98114082,0.000113,2]
[422352118,1778863843000,-1414.98114082,0.000114,2]
[422352115,1778863843000,-476.566289,0.000114,2]
[422352270,1778863844000,-500.0,0.00011506,2]
[422352273,1778863844000,-500.0,0.00011506,2]
[422352272,1778863844000,-500.0,0.00011506,2]
[422352259,1778863844000,-500.0,0.00011506,2]
[422352262,1778863844000,-939.5,0.00011506,2]
[422352266,1778863844000,-572.91,0.00011506,2]
[422352268,1778863844000,-500.0,0.00011506,2]
[422352264,1778863844000,-2807.64,0.00011506,2]
[422352255,1778863844000,-572.18,0.00011506,2]
[422352260,1778863844000,-505.82,0.00011506,2]
[422352277,1778863844000,-500.0,0.00011506,2]
[422352257,1778863844000,-826.41,0.00011506,2]
[422352253,1778863844000,-500.0,0.00011506,2]
[422352298,1778863844000,-722.68,0.00011506,2]
[422352285,1778863844000,-1878.25,0.00011506,2]
[422352279,1778863844000,-500.0,0.00011506,2]
[422352283,1778863844000,-516.16,0.00011506,2]
[422352281,1778863844000,-755.61,0.00011506,2]
[422352304,1778863844000,-965.67,0.00011506,2]
[422352314,1778863844000,-1125.11,0.00011506,2]
[422352294,1778863844000,-1133.35,0.00011506,2]
[422352312,1778863844000,-542.53,0.00011506,2]
[422352292,1778863844000,-500.0,0.00011506,2]
[422352296,1778863844000,-606.44,0.00011506,2]
[422352302,1778863844000,-1310.21,0.00011506,2]
[422352310,1778863844000,-500.0,0.00011506,2]
[422352251,1778863844000,-500.0,0.00011506,2]
[422352275,1778863844000,-500.0,0.00011506,2]
[422352250,1778863844000,-745.67,0.00011506,2]
[422352215,1778863844000,-500.0,0.00011506,2]
[422352245,1778863844000,-500.0,0.00011506,2]
[422352308,1778863844000,-3103.45,0.00011506,2]
[422352195,1778863844000,-500.0,0.00011506,2]
[422352197,1778863844000,-500.0,0.00011506,2]
[422352198,1778863844000,-1974.06,0.00011506,2]
[422352211,1778863844000,-500.0,0.00011506,2]
[422352213,1778863844000,-500.0,0.00011506,2]
[422352204,1778863844000,-500.0,0.00011506,2]
[422352206,1778863844000,-153.41807065,0.00011506,2]
[422352208,1778863844000,-500.0,0.00011506,2]
[422352217,1778863844000,-500.0,0.00011506,2]
[422352209,1778863844000,-756.94,0.00011506,2]
[422352202,1778863844000,-1087.36,0.00011506,2]
[422352200,1778863844000,-719.93,0.00011506,2]
[422352219,1778863844000,-2643.59,0.00011506,2]
[422352221,1778863844000,-500.0,0.00011506,2]
[422352223,1778863844000,-500.0,0.00011506,2]
[422352227,1778863844000,-696.19,0.00011506,2]
[422352229,1778863844000,-500.0,0.00011506,2]
[422352232,1778863844000,-646.04,0.00011506,2]
[422352230,1778863844000,-686.06,0.00011506,2]
[422352234,1778863844000,-986.0,0.00011506,2]
[422352242,1778863844000,-500.0,0.00011506,2]
[422352238,1778863844000,-1084.68,0.00011506,2]
[422352236,1778863844000,-580.45,0.00011506,2]
[422352240,1778863844000,-794.72,0.00011506,2]
[422352225,1778863844000,-500.0,0.00011506,2]
[422352244,1778863844000,-654.28,0.00011506,2]
[422352248,1778863844000,-1545.84,0.00011506,2]
[422352300,1778863844000,-500.0,0.00011506,2]
[422352306,1778863844000,-500.0,0.00011506,2]
[422352318,1778863844000,-500.0,0.00011506,2]
[422352376,1778863844000,-1773.23,0.00011506,2]
[422352369,1778863844000,-762.33,0.00011506,2]
[422352384,1778863844000,-500.0,0.00011506,2]
[422352375,1778863844000,-500.0,0.00011506,2]
[422352373,1778863844000,-500.0,0.00011506,2]
[422352382,1778863844000,-928.17,0.00011506,2]
[422352388,1778863844000,-561.21,0.00011506,2]
[422352399,1778863844000,-500.0,0.00011506,2]
[422352389,1778863844000,-588.06,0.00011506,2]
[422352391,1778863844000,-3065.75,0.00011506,2]
[422352397,1778863844000,-2895.66,0.00011506,2]
[422352395,1778863844000,-3580.33,0.00011506,2]
[422352401,1778863844000,-500.0,0.00011506,2]
[422352393,1778863844000,-937.08,0.00011506,2]
[422352406,1778863844000,-1574.98,0.00011506,2]
[422352403,1778863844000,-2521.44,0.00011506,2]
[422352404,1778863844000,-9311.83,0.00011506,2]
[422352408,1778863844000,-2729.04,0.00011506,2]
[422352410,1778863844000,-7013.42,0.00011506,2]
[422352411,1778863844000,-506.43,0.00011506,2]
[422352413,1778863844000,-6487.77,0.00011506,2]
[422352415,1778863844000,-2481.92,0.00011506,2]
[422352417,1778863844000,-2924.66,0.00011506,2]
[422352419,1778863844000,-2285.35,0.00011506,2]
[422352421,1778863844000,-500.0,0.00011506,2]
[422352422,1778863844000,-651.23,0.00011506,2]
[422352316,1778863844000,-500.0,0.00011506,2]
[422352371,1778863844000,-9498.13,0.00011506,2]
[422352378,1778863844000,-500.0,0.00011506,2]
[422352424,1778863844000,-625.72,0.00011506,2]
[422352364,1778863844000,-631.76,0.00011506,2]
[422352367,1778863844000,-804.15,0.00011506,2]
[422352330,1778863844000,-500.0,0.00011506,2]
[422352333,1778863844000,-7285.88,0.00011506,2]
[422352327,1778863844000,-500.0,0.00011506,2]
[422352322,1778863844000,-818.93,0.00011506,2]
[422352320,1778863844000,-500.0,0.00011506,2]
[422352426,1778863844000,-7690.37,0.00011506,2]
[422352328,1778863844000,-1170.78,0.00011506,2]
[422352332,1778863844000,-500.0,0.00011506,2]
[422352335,1778863844000,-500.0,0.00011506,2]
[422352325,1778863844000,-500.0,0.00011506,2]
[422352337,1778863844000,-776.61,0.00011506,2]
[422352348,1778863844000,-855.85,0.00011506,2]
[422352358,1778863844000,-3077.78,0.00011506,2]
[422352324,1778863844000,-3252.31,0.00011506,2]
[422352339,1778863844000,-6429.55,0.00011506,2]
[422352346,1778863844000,-500.0,0.00011506,2]
[422352386,1778863844000,-3398.85,0.00011506,2]
[422352365,1778863844000,-2324.68,0.00011506,2]
[422352352,1778863844000,-388.5224553,0.00011506,2]
[422352354,1778863844000,-3918.53,0.00011506,2]
[422352360,1778863844000,-1743.35,0.00011506,2]
[422352380,1778863844000,-711.9,0.00011506,2]
[422352345,1778863844000,-248.8740095,0.00011506,2]
[422352343,1778863844000,-948.39,0.00011506,2]
[422352341,1778863844000,-500.0,0.00011506,2]
[422352356,1778863844000,-500.0,0.00011506,2]
[422352362,1778863844000,-1909.52,0.00011506,2]
[422352350,1778863844000,-1091.57,0.00011506,2]
[422352498,1778863845000,-393.0,0.00011507,3]
[422352496,1778863845000,-3212.3,0.00011506,2]
[422352489,1778863845000,-3011.93,0.00011506,2]
[422352477,1778863845000,-3958.28,0.00011506,2]
[422352485,1778863845000,-500.0,0.00011506,2]
[422352480,1778863845000,-779.34,0.00011506,2]
[422352504,1778863845000,-7208.88931684,0.000116,2]
[422352469,1778863845000,-4099.69,0.00011506,2]
[422352487,1778863845000,-1244.28,0.00011506,2]
[422352482,1778863845000,-500.0,0.00011506,2]
[422352492,1778863845000,-1305.79,0.00011506,2]
[422352502,1778863845000,-385.12684615,0.00011544,2]
[422352494,1778863845000,-500.0,0.00011506,2]
[422352500,1778863845000,-3040.33,0.00011507,2]
[422352506,1778863845000,-1414.98114082,0.000116,2]
[422352519,1778863845000,-500.0,0.0001178,2]
[422352520,1778863845000,-720.55,0.0001178,2]
[422352507,1778863845000,-7208.88931684,0.000117,2]
[422352526,1778863845000,-500.0,0.0001178,2]
[422352479,1778863845000,-500.0,0.00011506,2]
[422352522,1778863845000,-500.0,0.0001178,2]
[422352490,1778863845000,-6290.54,0.00011506,2]
[422352466,1778863845000,-500.0,0.00011506,2]
[422352443,1778863845000,-500.0,0.00011506,2]
[422352467,1778863845000,-507.51,0.00011506,2]
[422352509,1778863845000,-1414.98114082,0.000117,2]
[422352433,1778863845000,-4225.0,0.00011506,2]
[422352428,1778863845000,-500.0,0.00011506,2]
[422352432,1778863845000,-620.06568089,0.00011506,2]
[422352430,1778863845000,-739.03,0.00011506,2]
[422352435,1778863845000,-500.0,0.00011506,2]
[422352437,1778863845000,-1286.03,0.00011506,2]
[422352445,1778863845000,-3008.18,0.00011506,2]
[422352447,1778863845000,-500.0,0.00011506,2]
[422352450,1778863845000,-500.0,0.00011506,2]
[422352473,1778863845000,-500.0,0.00011506,2]
[422352441,1778863845000,-500.0,0.00011506,2]
[422352452,1778863845000,-48469.1,0.00011506,2]
[422352439,1778863845000,-500.0,0.00011506,2]
[422352454,1778863845000,-1791.44,0.00011506,2]
[422352458,1778863845000,-2026.0,0.00011506,2]
[422352456,1778863845000,-500.0,0.00011506,2]
[422352460,1778863845000,-2339.66,0.00011506,2]
[422352462,1778863845000,-1121.96,0.00011506,2]
[422352471,1778863845000,-897.07,0.00011506,2]
[422352464,1778863845000,-9569.51,0.00011506,2]
[422352475,1778863845000,-2493.99,0.00011506,2]
[422352449,1778863845000,-442.02219476,0.00011506,2]
[422352524,1778863845000,-500.0,0.0001178,2]
[422352537,1778863845000,-855.3,0.0001178,2]
[422352515,1778863845000,-500.0,0.0001178,2]
[422352564,1778863845000,-500.0,0.0001178,2]
[422352562,1778863845000,-1509.13,0.0001178,2]
[422352577,1778863845000,-500.0,0.0001178,2]
[422352579,1778863845000,-1974.06,0.0001178,2]
[422352582,1778863845000,-719.93,0.0001178,2]
[422352592,1778863845000,-500.0,0.0001178,2]
[422352593,1778863845000,-500.0,0.0001178,2]
[422352595,1778863845000,-500.0,0.0001178,2]
[422352596,1778863845000,-631.14697915,0.0001178,2]
[422352585,1778863845000,-500.0,0.0001178,2]
[422352566,1778863845000,-500.0,0.0001178,2]
[422352584,1778863845000,-1087.36,0.0001178,2]
[422352594,1778863845000,-2643.59,0.0001178,2]
[422352511,1778863845000,-2141.6815,0.0001178,2]
[422352589,1778863845000,-756.94,0.0001178,2]
[422352590,1778863845000,-500.0,0.0001178,2]
[422352598,1778863845000,-696.19,0.0001178,2]
[422352600,1778863845000,-686.06,0.0001178,2]
[422352597,1778863845000,-500.0,0.0001178,2]
[422352601,1778863845000,-646.04,0.0001178,2]
[422352599,1778863845000,-500.0,0.0001178,2]
[422352602,1778863845000,-301.77794648,0.0001178,2]
[422352587,1778863845000,-350.1597932,0.0001178,2]
[422352575,1778863845000,-597.78920216,0.0001178,2]
[422352591,1778863845000,-500.0,0.0001178,2]
[422352558,1778863845000,-500.0,0.0001178,2]
[422352573,1778863845000,-500.0,0.0001178,2]
[422352513,1778863845000,-2627.9075,0.0001178,2]
[422352530,1778863845000,-500.0,0.0001178,2]
[422352517,1778863845000,-500.0,0.0001178,2]
[422352528,1778863845000,-500.0,0.0001178,2]
[422352531,1778863845000,-1523.86,0.0001178,2]
[422352535,1778863845000,-500.0,0.0001178,2]
[422352539,1778863845000,-500.0,0.0001178,2]
[422352547,1778863845000,-500.0,0.0001178,2]
[422352541,1778863845000,-500.0,0.0001178,2]
[422352545,1778863845000,-1374.55,0.0001178,2]
[422352543,1778863845000,-564.0,0.0001178,2]
[422352560,1778863845000,-500.0,0.0001178,2]
[422352533,1778863845000,-688.82,0.0001178,2]
[422352549,1778863845000,-500.0,0.0001178,2]
[422352555,1778863845000,-500.0,0.0001178,2]
[422352553,1778863845000,-500.0,0.0001178,2]
[422352571,1778863845000,-272.22945909,0.0001178,2]
[422352557,1778863845000,-806.6,0.0001178,2]
[422352568,1778863845000,-1499.43,0.0001178,2]
[422352570,1778863845000,-500.0,0.0001178,2]
[422352551,1778863845000,-500.0,0.0001178,2]
[422352675,1778863846000,-1878.25,0.0001178,2]
[422352669,1778863846000,-500.0,0.0001178,2]
[422352661,1778863846000,-500.0,0.0001178,2]
[422352663,1778863846000,-500.0,0.0001178,2]
[422352659,1778863846000,-500.0,0.0001178,2]
[422352647,1778863846000,-500.0,0.0001178,2]
[422352677,1778863846000,-500.0,0.0001178,2]
[422352682,1778863846000,-722.68,0.0001178,2]
[422352665,1778863846000,-500.0,0.0001178,2]
[422352680,1778863846000,-606.44,0.0001178,2]
[422352671,1778863846000,-755.61,0.0001178,2]
[422352667,1778863846000,-500.0,0.0001178,2]
[422352657,1778863846000,-500.0,0.0001178,2]
[422352679,1778863846000,-1133.35,0.0001178,2]
[422352655,1778863846000,-572.91,0.0001178,2]
[422352630,1778863846000,-500.0,0.0001178,2]
[422352643,1778863846000,-572.18,0.0001178,2]
[422352653,1778863846000,-2807.64,0.0001178,2]
[422352641,1778863846000,-247.13655943,0.0001178,2]
[422352651,1778863846000,-939.5,0.0001178,2]
[422352639,1778863846000,-500.0,0.0001178,2]
[422352637,1778863846000,-745.67,0.0001178,2]
[422352626,1778863846000,-1084.68,0.0001178,2]
[422352635,1778863846000,-1545.84,0.0001178,2]
[422352631,1778863846000,-654.28,0.0001178,2]
[422352628,1778863846000,-794.72,0.0001178,2]
[422352633,1778863846000,-500.0,0.0001178,2]
[422352624,1778863846000,-580.45,0.0001178,2]
[422352622,1778863846000,-684.22205352,0.0001178,2]
[422352684,1778863846000,-500.0,0.0001178,2]
[422352649,1778863846000,-505.82,0.0001178,2]
[422352686,1778863846000,-1310.21,0.0001178,2]
[422352645,1778863846000,-826.41,0.0001178,2]
[422352688,1778863846000,-965.67,0.0001178,2]
[422352793,1778863846000,-419.16032054,0.0001178,2]
[422352725,1778863846000,-500.0,0.0001178,2]
[422352729,1778863846000,-500.0,0.0001178,2]
[422352719,1778863846000,-500.0,0.0001178,2]
[422352733,1778863846000,-988.75825884,0.0001178,2]
[422352735,1778863846000,-102.81174116,0.0001178,2]
[422352731,1778863846000,-855.85,0.0001178,2]
[422352737,1778863846000,-3918.53,0.0001178,2]
[422352744,1778863846000,-837.82014782,0.0001178,2]
[422352740,1778863846000,-1153.99255184,0.0001178,2]
[422352786,1778863846000,-160.0,0.000109,2]
[422352788,1778863846000,-677.573391,0.0001178,2]
[422352791,1778863846000,-408.39390934,0.0001178,2]
[422352673,1778863846000,-516.16,0.0001178,2]
[422352739,1778863846000,-500.0,0.0001178,2]
[422352727,1778863846000,-948.39,0.0001178,2]
[422352717,1778863846000,-7285.88,0.0001178,2]
[422352723,1778863846000,-6429.55,0.0001178,2]
[422352700,1778863846000,-500.0,0.0001178,2]
[422352703,1778863846000,-818.93,0.0001178,2]
[422352698,1778863846000,-1125.11,0.0001178,2]
[422352715,1778863846000,-500.0,0.0001178,2]
[422352705,1778863846000,-3252.31,0.0001178,2]
[422352692,1778863846000,-3103.45,0.0001178,2]
[422352690,1778863846000,-500.0,0.0001178,2]
[422352701,1778863846000,-500.0,0.0001178,2]
[422352696,1778863846000,-542.53,0.0001178,2]
[422352709,1778863846000,-500.0,0.0001178,2]
[422352707,1778863846000,-500.0,0.0001178,2]
[422352711,1778863846000,-1170.78,0.0001178,2]
[422352713,1778863846000,-404.77511463,0.0001178,2]
[422352722,1778863846000,-776.61,0.0001178,2]
[422352694,1778863846000,-500.0,0.0001178,2]
[422352861,1778863847000,-152.0,0.00010791,2]
[422352816,1778863847000,-631.76,0.0001178,2]
[422352820,1778863847000,-66.37539024,0.0001178,2]
[422352812,1778863847000,-1324.18967946,0.0001178,2]
[422352818,1778863847000,-2324.68,0.0001178,2]
[422352814,1778863847000,-1909.52,0.0001178,2]
[422352859,1778863847000,-152.0,0.00010545,2]
[422352865,1778863847000,-649.25460976,0.0001178,2]
[422352867,1778863847000,-762.33,0.0001178,2]
[422352871,1778863847000,-500.0,0.0001178,2]
[422352875,1778863847000,-1092.60690781,0.0001178,2]
[422352879,1778863847000,-500.0,0.0001178,2]
[422352877,1778863847000,-680.62309219,0.0001178,2]
[422352869,1778863847000,-9498.13,0.0001178,2]
[422352873,1778863847000,-500.0,0.0001178,2]
[422352863,1778863847000,-88.52,0.0001178,2]
[422352881,1778863847000,-711.9,0.0001178,2]
[422352883,1778863847000,-928.17,0.0001178,2]
[422352884,1778863847000,-500.0,0.0001178,2]
[422352886,1778863847000,-927.9454864,0.0001178,2]
[422354426,1778865032000,-4800.0,6.93e-05,2]
[422354874,1778865041000,-300.0,7.673e-05,2]
[422354856,1778865041000,-300.0,7.522e-05,2]
[422354872,1778865041000,-300.0,7.673e-05,2]
[422354860,1778865041000,-6197.67181572,7.673e-05,2]
[422354862,1778865041000,-300.0,7.673e-05,2]
[422354866,1778865041000,-300.0,7.673e-05,2]
[422354868,1778865041000,-300.0,7.673e-05,2]
[422354858,1778865041000,-6218.36958488,7.6e-05,2]
[422354870,1778865041000,-300.0,7.673e-05,2]
[422354848,1778865041000,-300.0,7.521e-05,2]
[422354852,1778865041000,-300.0,7.521e-05,2]
[422354864,1778865041000,-300.0,7.673e-05,2]
[422354842,1778865041000,-2716.83,7e-05,2]
[422354850,1778865041000,-300.0,7.521e-05,2]
[422354840,1778865041000,-200.0,6.93e-05,2]
[422354844,1778865041000,-438.05624803,7.301e-05,2]
[422354846,1778865041000,-1200.0,7.448e-05,2]
[422354877,1778865041000,-300.0,7.673e-05,2]
[422354854,1778865041000,-300.0,7.521e-05,2]
[422354879,1778865041000,-300.0,7.673e-05,2]
[422354918,1778865041000,-500.0,9.999e-05,2]
[422354891,1778865041000,-300.0,7.673e-05,2]
[422354881,1778865041000,-300.0,7.673e-05,2]
[422354920,1778865041000,-500.0,9.999e-05,2]
[422354922,1778865041000,-500.0,9.999e-05,2]
[422354912,1778865041000,-500.0,9.999e-05,2]
[422354914,1778865041000,-500.0,9.999e-05,2]
[422354911,1778865041000,-500.0,9.999e-05,2]
[422354909,1778865041000,-500.0,9.999e-05,2]
[422354916,1778865041000,-500.0,9.999e-05,2]
[422354905,1778865041000,-600.0,9.612e-05,2]
[422354907,1778865041000,-500.0,9.926e-05,2]
[422354889,1778865041000,-300.0,7.673e-05,2]
[422354903,1778865041000,-6859.03550289,9.425e-05,2]
[422354899,1778865041000,-715.5503244,9.274e-05,2]
[422354885,1778865041000,-300.0,7.673e-05,2]
[422354897,1778865041000,-404.0657922,8.298e-05,2]
[422354883,1778865041000,-300.0,7.673e-05,2]
[422354895,1778865041000,-225.0,8.273e-05,2]
[422354887,1778865041000,-300.0,7.673e-05,2]
[422354893,1778865041000,-300.0,8.273e-05,2]
[422354901,1778865041000,-9365.7590256,9.301e-05,2]
[422354931,1778865042000,-500.0,9.999e-05,2]
[422354930,1778865042000,-500.0,9.999e-05,2]
[422354924,1778865042000,-500.0,9.999e-05,2]
[422354928,1778865042000,-500.0,9.999e-05,2]
[422354926,1778865042000,-500.0,9.999e-05,2]
[422354941,1778865042000,-15362.87534542,0.0001,2]
[422354936,1778865042000,-500.0,9.999e-05,2]
[422354944,1778865042000,-8540.47415794,0.0001,2]
[422354938,1778865042000,-386.91354736,9.999e-05,2]
[422354940,1778865042000,-223.06,0.0001,2]
[422354933,1778865042000,-155.87802505,9.999e-05,2]
[422355061,1778865047000,-155.15484453,0.000105,2]
[422355062,1778865047000,-720.0,0.00010574,2]
[422355060,1778865047000,-151.22644336,0.000105,2]
[422355058,1778865047000,-2776.96656938,0.000105,2]
[422355059,1778865047000,-2104.48546011,0.000105,2]
[422355057,1778865047000,-1794.57631833,0.000105,2]
[422355064,1778865047000,-500.0,0.00010655,2]
[422355055,1778865047000,-2285.77144381,0.000105,2]
[422355056,1778865047000,-1334.11794663,0.000105,2]
[422355052,1778865047000,-476.79763479,0.00010298,2]
[422355053,1778865047000,-155.02961378,0.000104,2]
[422355051,1778865047000,-421.40430105,0.0001,2]
[422355049,1778865047000,-5000.0,6.861e-05,2]
[422355050,1778865047000,-11484.90298583,0.0001,2]
[422355054,1778865047000,-563.75043315,0.000105,2]
[422355063,1778865047000,-557.29092506,0.00010655,2]
[422355078,1778865047000,-500.0,0.00010655,2]
[422355070,1778865047000,-500.0,0.00010655,2]
[422355067,1778865047000,-500.0,0.00010655,2]
[422355081,1778865047000,-214.25154556,0.00010655,2]
[422355080,1778865047000,-500.0,0.00010655,2]
[422355077,1778865047000,-500.0,0.00010655,2]
[422355076,1778865047000,-500.0,0.00010655,2]
[422355074,1778865047000,-500.0,0.00010655,2]
[422355075,1778865047000,-500.0,0.00010655,2]